bitfinex/quotes_BTCUSD_20230901
["timestamp","ask_amount","ask_price","bid_price","bid_amount"]
[1693586705748,1.16690242,25840.0,25839.0,0.11181687]
[1693586705950,1.16750242,25840.0,25839.0,0.11181687]
[1693586706154,1.35131449,25840.0,25839.0,0.11181687]
[1693586706333,1.68237397,25840.0,25839.0,0.11181687]
[1693586706542,1.68237397,25840.0,25839.0,0.081998]
[1693586706543,1.87186328,25840.0,25839.0,0.081998]
[1693586706778,2.46830527,25840.0,25839.0,0.081998]
[1693586706988,2.57323407,25840.0,25839.0,0.081998]
[1693586707191,2.58485524,25840.0,25839.0,0.081998]
[1693586707397,2.58377524,25840.0,25839.0,0.081998]
[1693586707696,2.58377524,25840.0,25839.0,0.046998]
[1693586707697,2.38403648,25840.0,25839.0,0.046998]
[1693586707911,2.38997648,25840.0,25839.0,0.046998]
[1693586708106,2.37527648,25840.0,25839.0,0.009998]
[1693586708346,2.37041648,25840.0,25839.0,0.009998]
[1693586708549,2.40921648,25840.0,25839.0,0.012998]
[1693586708725,2.41713648,25840.0,25839.0,0.012998]
[1693586708952,2.39535648,25840.0,25839.0,0.012998]
[1693586709185,2.35971648,25840.0,25839.0,0.012998]
[1693586709392,2.0717139,25840.0,25839.0,0.012998]
[1693586709602,1.6468139,25840.0,25839.0,0.015998]
[1693586709811,1.6348139,25840.0,25839.0,0.015998]
[1693586709999,1.6130139,25840.0,25839.0,0.012998]
[1693586710204,1.79208843,25840.0,25839.0,0.015998]
[1693586710409,2.3541339,25840.0,25839.0,0.015998]
[1693586710614,2.53003648,25840.0,25839.0,0.015998]
[1693586710820,2.30551449,25840.0,25839.0,0.015998]
[1693586711022,2.29651449,25840.0,25839.0,0.015998]
[1693586711224,2.49188039,25840.0,25839.0,0.015998]
[1693586711429,2.44040039,25840.0,25839.0,0.015998]
[1693586711628,2.42438039,25840.0,25839.0,0.015998]
[1693586711826,2.41628039,25840.0,25839.0,0.015998]
[1693586711965,2.41286039,25840.0,25839.0,0.015998]
[1693586712191,2.41016039,25840.0,25839.0,0.015998]
[1693586712404,2.32980039,25840.0,25839.0,0.015998]
[1693586712625,2.33034039,25840.0,25839.0,0.015998]
[1693586712846,2.32926039,25840.0,25839.0,0.015998]
[1693586713046,2.32980039,25840.0,25839.0,0.015998]
[1693586713249,2.33016039,25840.0,25839.0,0.015998]
[1693586713399,2.48198039,25840.0,25839.0,0.015998]
[1693586713599,2.25866039,25840.0,25839.0,0.015998]
[1693586713840,2.25326039,25840.0,25839.0,0.015998]
[1693586714057,2.25470039,25840.0,25839.0,0.015998]
[1693586714271,2.25566039,25840.0,25839.0,0.015998]
[1693586714444,2.25422039,25840.0,25839.0,0.015998]
[1693586714826,2.25326039,25840.0,25839.0,0.015998]
[1693586715025,2.25350039,25840.0,25839.0,0.015998]
[1693586715234,2.64566252,25840.0,25839.0,0.015998]
[1693586715436,2.80837449,25840.0,25839.0,0.015998]
[1693586715630,2.77579449,25840.0,25839.0,0.015998]
[1693586715833,2.76607449,25840.0,25839.0,0.015998]
[1693586716043,2.81143449,25840.0,25839.0,0.015998]
[1693586716248,3.12529352,25840.0,25839.0,0.015998]
[1693586718595,3.82529352,25840.0,25839.0,0.015998]
[1693586720130,3.33574112,25840.0,25839.0,0.015998]
[1693586720341,3.33598112,25840.0,25839.0,0.015998]
[1693586720762,0.92011724,25836.0,25835.0,0.019998]
[1693586720983,2.35978149,25836.0,25835.0,0.019998]
[1693586721126,0.92011724,25835.0,25834.0,0.019998]
[1693586721324,2.03136875,25835.0,25834.0,0.019998]
[1693586721523,4.07296875,25835.0,25834.0,0.019998]
[1693586721767,3.79114875,25835.0,25834.0,0.019998]
[1693586721953,3.79672875,25835.0,25834.0,0.019998]
[1693586722155,3.81677675,25835.0,25834.0,0.019998]
[1693586722359,4.19452924,25835.0,25834.0,0.019998]
[1693586722509,4.19506924,25835.0,25834.0,0.019998]
[1693586722714,4.17418924,25835.0,25834.0,0.019998]
[1693586722961,4.47112924,25835.0,25834.0,0.019998]
[1693586723163,4.16428924,25835.0,25834.0,0.019998]
[1693586723367,3.83675271,25835.0,25834.0,0.027998]
[1693586723565,3.87623775,25835.0,25834.0,0.027998]
[1693586723721,3.44476753,25835.0,25834.0,0.027998]
[1693586723922,1.93292001,25835.0,25834.0,0.027998]
[1693586724125,0.98220249,25835.0,25834.0,0.027998]
[1693586724357,0.66969202,25835.0,25834.0,0.027998]
[1693586724564,0.72987202,25835.0,25834.0,0.027998]
[1693586724788,0.97544959,25835.0,25834.0,0.027998]
[1693586724993,1.14843455,25835.0,25834.0,0.027998]
[1693586725332,1.30029455,25835.0,25834.0,0.027998]
[1693586725741,1.29033455,25835.0,25834.0,0.027998]
[1693586725946,1.15407455,25835.0,25834.0,0.027998]
[1693586726124,0.88245202,25835.0,25834.0,0.027998]
[1693586726348,1.14408443,25835.0,25834.0,0.027998]
[1693586726547,0.95109202,25835.0,25834.0,0.027998]
[1693586726750,0.96081202,25835.0,25834.0,0.027998]
[1693586726971,0.96609202,25835.0,25834.0,0.027998]
[1693586727121,0.97485202,25835.0,25834.0,0.027998]
[1693586727333,0.96933202,25835.0,25834.0,0.027998]
[1693586727511,0.99329202,25835.0,25834.0,0.027998]
[1693586727717,1.42523202,25835.0,25834.0,0.027998]
[1693586727916,1.41515202,25835.0,25834.0,0.027998]
[1693586728281,1.57767202,25835.0,25834.0,0.027998]
[1693586728504,1.58631202,25835.0,25834.0,0.027998]
[1693586728661,1.12956675,25835.0,25834.0,0.027998]
[1693586729061,1.14504675,25835.0,25834.0,0.027998]
[1693586729294,0.95001202,25835.0,25834.0,0.027998]
[1693586729494,0.94545202,25835.0,25834.0,0.027998]
[1693586729689,0.94929202,25835.0,25834.0,0.027998]
[1693586729845,1.65143202,25835.0,25834.0,0.027998]
[1693586730047,1.87663202,25835.0,25834.0,0.027998]
[1693586730245,2.02202465,25835.0,25834.0,0.027998]
[1693586730474,2.02688465,25835.0,25834.0,0.027998]
[1693586730676,2.04092465,25835.0,25834.0,0.027998]
[1693586730879,2.30403362,25835.0,25834.0,0.027998]
[1693586731101,2.77205362,25835.0,25834.0,0.027998]
[1693586731252,4.52784465,25835.0,25834.0,0.027998]
[1693586731453,6.79328465,25835.0,25834.0,0.027998]
[1693586731960,7.02598465,25835.0,25834.0,0.027998]
[1693586732141,7.02598465,25835.0,25833.0,0.020408]
[1693586732142,0.90011724,25834.0,25833.0,0.020408]
[1693586732383,0.90011724,25834.0,25831.0,0.019998]
[1693586732384,0.92011724,25832.0,25831.0,0.019998]
[1693586732588,0.92011724,25832.0,25825.0,0.019998]
[1693586732589,0.60741724,25826.0,25825.0,0.019998]
[1693586732786,1.48191136,25826.0,25825.0,0.019998]
[1693586732992,2.14937136,25826.0,25825.0,0.019998]
[1693586733150,2.20427136,25826.0,25825.0,0.019998]
[1693586733349,1.87794402,25826.0,25825.0,0.019998]
[1693586733550,2.43085604,25826.0,25825.0,0.019998]
[1693586733773,2.43085604,25826.0,25825.0,0.035998]
[1693586733774,2.46615604,25826.0,25825.0,0.035998]
[1693586733949,2.44869604,25826.0,25825.0,0.035998]
[1693586734116,2.48487604,25826.0,25825.0,0.035998]
[1693586734320,2.90367604,25826.0,25825.0,0.035998]
[1693586734519,2.87163604,25826.0,25825.0,0.035998]
[1693586734814,2.84709604,25826.0,25825.0,0.043998]
[1693586735038,2.85015604,25826.0,25825.0,0.043998]
[1693586735246,2.87037604,25826.0,25825.0,0.035998]
[1693586735448,2.89305604,25826.0,25825.0,0.036998]
[1693586735670,2.88133604,25826.0,25825.0,0.019998]
[1693586735872,2.91627404,25826.0,25825.0,0.021998]
[1693586736049,2.95263404,25826.0,25825.0,0.022998]
[1693586736252,2.96289404,25826.0,25825.0,0.020998]
[1693586736456,2.75424202,25826.0,25825.0,0.020998]
[1693586736649,2.78842549,25826.0,25825.0,0.022998]
[1693586736854,2.80300549,25826.0,25825.0,0.022998]
[1693586737092,3.11230549,25826.0,25825.0,0.022998]
[1693586737226,3.07630549,25826.0,25825.0,0.021998]
[1693586737428,3.27506452,25826.0,25825.0,0.021998]
[1693586737629,0.90011724,25824.0,25823.0,0.019998]
[1693586737951,0.60741724,25821.0,25820.0,0.0019598]
[1693586738187,1.30933873,25821.0,25820.0,0.0019598]
[1693586738371,1.30933873,25821.0,25813.0,0.15876466]
[1693586738372,0.58741724,25814.0,25813.0,0.15876466]
[1693586738575,0.58741724,25814.0,25813.0,0.01989699]
[1693586738576,1.12933873,25814.0,25813.0,0.01989699]
[1693586738750,2.01621873,25814.0,25813.0,0.01989699]
[1693586738949,1.96419873,25814.0,25813.0,0.01989699]
[1693586739320,1.52934402,25814.0,25813.0,0.05928353]
[1693586739555,1.52934402,25814.0,25813.0,0.01989699]
[1693586739556,1.10796402,25814.0,25813.0,0.01989699]
[1693586739760,1.01748402,25814.0,25813.0,0.01989699]
[1693586739962,1.04624402,25814.0,25813.0,0.01989699]
[1693586740166,0.90620402,25814.0,25813.0,0.01989699]
[1693586740373,0.83524402,25814.0,25813.0,0.01989699]
[1693586740577,0.83524402,25814.0,25813.0,0.05827785]
[1693586740578,0.53282939,25814.0,25813.0,0.05827785]
[1693586740705,0.51440939,25814.0,25813.0,0.01989699]
[1693586740907,0.42308678,25814.0,25813.0,0.01989699]
[1693586741110,0.38708678,25814.0,25813.0,0.01989699]
[1693586741335,0.42900939,25814.0,25813.0,0.01989699]
[1693586741535,0.08058,25817.0,25814.0,0.42921475]
[1693586741738,0.10077645,25819.0,25814.0,0.42921475]
[1693586741739,0.09066,25815.0,25814.0,0.50369778]
[1693586741963,0.38708678,25816.0,25814.0,0.42921475]
[1693586742148,0.07554,25815.0,25814.0,0.42921475]
[1693586742470,0.06594,25815.0,25814.0,0.42921475]
[1693586742676,0.07404,25815.0,25814.0,0.42921475]
[1693586742851,0.08124,25815.0,25814.0,0.42921475]
[1693586743201,0.07338,25815.0,25814.0,0.42921475]
[1693586743394,0.06672,25815.0,25814.0,0.42921475]
[1693586743600,0.224937,25815.0,25814.0,0.42921475]
[1693586743810,0.07034182,25819.0,25814.0,0.42921475]
[1693586744016,0.07034182,25819.0,25815.0,0.0746884]
[1693586744017,0.07340182,25819.0,25815.0,0.0746884]
[1693586744222,0.07970182,25819.0,25815.0,0.0746884]
[1693586744423,0.004,25816.0,25815.0,0.0746884]
[1693586744640,0.004,25816.0,25815.0,0.00020537]
[1693586744847,0.00098182,25819.0,25815.0,0.00020537]
[1693586745049,0.00498182,25819.0,25815.0,0.02120537]
[1693586745252,0.00898182,25819.0,25815.0,0.02120537]
[1693586745403,0.00498182,25819.0,25815.0,0.01920537]
[1693586745614,0.004,25816.0,25815.0,0.00220537]
[1693586745813,0.008,25816.0,25815.0,0.02120537]
[1693586746011,0.004,25816.0,25815.0,0.03920537]
[1693586746237,0.004,25819.0,25817.0,0.00020537]
[1693586746812,0.004,25819.0,25818.0,0.00020537]
[1693586747450,0.099794,25821.0,25819.0,0.00020537]
[1693586747661,0.06996,25820.0,25819.0,0.00020537]
[1693586747864,0.07668,25820.0,25819.0,0.00020537]
[1693586748065,0.08046,25820.0,25819.0,0.00020537]
[1693586748266,0.07968,25820.0,25819.0,0.00020537]
[1693586748585,0.07584,25820.0,25819.0,0.00020537]
[1693586748790,0.004,25820.0,25819.0,0.00220537]
[1693586749216,0.008,25820.0,25819.0,0.02120537]
[1693586749805,0.08318,25820.0,25819.0,0.02120537]
[1693586750024,0.89245272,25820.0,25819.0,0.021]
[1693586750224,1.13311801,25820.0,25819.0,0.021]
[1693586750425,0.52264678,25820.0,25819.0,0.021]
[1693586750714,0.50068678,25820.0,25819.0,0.021]
[1693586750951,0.49582678,25820.0,25819.0,0.021]
[1693586751149,0.74104367,25820.0,25819.0,0.021]
[1693586751346,0.74752367,25820.0,25819.0,0.021]
[1693586751594,0.74524367,25820.0,25819.0,0.021]
[1693586751892,0.74728367,25820.0,25819.0,0.021]
[1693586752222,0.89980367,25820.0,25819.0,0.021]
[1693586752435,0.89920367,25820.0,25819.0,0.021]
[1693586752606,0.75730367,25820.0,25819.0,0.021]
[1693586752827,0.75622367,25820.0,25819.0,0.021]
[1693586752945,0.75550367,25820.0,25819.0,0.021]
[1693586753144,0.75592367,25820.0,25819.0,0.021]
[1693586753359,0.74518367,25820.0,25819.0,0.021]
[1693586753560,0.74938367,25820.0,25819.0,0.021]
[1693586753772,0.74968367,25820.0,25819.0,0.021]
[1693586753970,0.46666678,25820.0,25819.0,0.021]
[1693586754171,0.008,25820.0,25819.0,0.021]
[1693586754370,0.008,25820.0,25819.0,0.05826744]
[1693586754371,0.0734,25820.0,25819.0,0.05826744]
[1693586754652,0.008,25820.0,25819.0,0.05826744]
[1693586756233,0.08066,25820.0,25819.0,0.05826744]
[1693586756438,0.008,25820.0,25819.0,0.05826744]
[1693586757049,0.008,25820.0,25819.0,0.21847281]
[1693586757483,0.008,25820.0,25819.0,0.05847281]
[1693586758785,0.21680229,25820.0,25819.0,0.05847281]
[1693586758992,0.30962229,25820.0,25819.0,0.05847281]
[1693586759195,0.30848229,25820.0,25819.0,0.05847281]
[1693586759305,0.30710229,25820.0,25819.0,0.05847281]
[1693586759505,0.30626229,25820.0,25819.0,0.05847281]
[1693586759708,0.31496229,25820.0,25819.0,0.05826744]
[1693586759956,0.31118229,25820.0,25819.0,0.05847281]
[1693586760137,0.31016229,25820.0,25819.0,0.05847281]
[1693586760338,0.0995,25820.0,25819.0,0.05847281]
[1693586760535,0.09296,25820.0,25819.0,0.05847281]
[1693586760733,0.10526,25820.0,25819.0,0.05847281]
[1693586761095,0.71303015,25820.0,25819.0,0.05826744]
[1693586761316,0.89255015,25820.0,25819.0,0.05826744]
[1693586761489,0.98071015,25820.0,25819.0,0.05826744]
[1693586761695,0.94651015,25820.0,25819.0,0.05826744]
[1693586761894,0.31130337,25820.0,25819.0,0.021]
[1693586762161,0.004,25820.0,25819.0,0.00020537]
[1693586762348,0.099794,25821.0,25819.0,0.00020537]
[1693586762512,0.002,25820.0,25819.0,0.03947167]
[1693586763474,0.002,25820.0,25819.0,0.05247167]
[1693586763475,0.004,25820.0,25819.0,0.05247167]
[1693586763882,0.07586,25820.0,25819.0,0.05047167]
[1693586764163,0.35479636,25820.0,25819.0,0.03947167]
[1693586764377,0.92232314,25820.0,25819.0,0.0542663]
[1693586764691,0.95248314,25820.0,25819.0,0.0562663]
[1693586764869,1.09904314,25820.0,25819.0,0.0372663]
[1693586765101,0.92816141,25820.0,25819.0,0.0372663]
[1693586765316,1.23093746,25820.0,25819.0,0.015]
[1693586765523,1.59057746,25820.0,25819.0,0.013]
[1693586765730,1.64765746,25820.0,25819.0,0.013]
[1693586765942,1.41433746,25820.0,25819.0,0.015]
[1693586766145,1.41397746,25820.0,25819.0,0.015]
[1693586766346,1.68677897,25820.0,25819.0,0.015]
[1693586766549,1.44129897,25820.0,25819.0,0.002]
[1693586766756,1.07748292,25820.0,25819.0,0.002]
[1693586766963,1.05038292,25820.0,25819.0,0.003]
[1693586767171,1.00416292,25820.0,25819.0,0.03824566]
[1693586767378,1.00416292,25820.0,25819.0,0.03724566]
[1693586767379,0.63785614,25820.0,25819.0,0.03724566]
[1693586767577,0.67629614,25820.0,25819.0,0.03924566]
[1693586767794,0.50367614,25820.0,25819.0,0.03924566]
[1693586767936,0.47871614,25820.0,25819.0,0.03924566]
[1693586768139,0.47871614,25820.0,25819.0,0.03724566]
[1693586768140,0.63188766,25820.0,25819.0,0.03724566]
[1693586768346,0.64534766,25820.0,25819.0,0.03924566]
[1693586768542,0.47091614,25820.0,25819.0,0.001]
[1693586768745,0.59876857,25820.0,25819.0,0.003]
[1693586768946,0.42671614,25820.0,25819.0,0.003]
[1693586769196,0.80968292,25820.0,25819.0,0.001]
[1693586769406,0.97912292,25820.0,25819.0,0.001]
[1693586769603,0.97912292,25820.0,25814.0,0.11257844]
[1693586769604,1.16804941,25820.0,25814.0,0.11257844]
[1693586769863,0.79442149,25819.0,25814.0,0.11257844]
[1693586770064,0.91514149,25819.0,25814.0,0.11257844]
[1693586770266,0.1026,25818.0,25814.0,0.25144611]
[1693586770466,0.10182,25818.0,25815.0,0.09257844]
[1693586770792,0.0789,25818.0,25815.0,0.23144611]
[1693586771003,0.0777,25818.0,25815.0,0.23144611]
[1693586771209,0.07506,25818.0,25815.0,0.23144611]
[1693586771417,0.32198,25819.0,25816.0,0.09257844]
[1693586771626,0.004,25818.0,25817.0,0.11257844]
[1693586771818,0.008,25818.0,25817.0,0.41144611]
[1693586772403,0.008,25818.0,25817.0,0.31886767]
[1693586772604,0.004,25818.0,25817.0,0.96201557]
[1693586772804,0.002,25818.0,25817.0,0.98101557]
[1693586773036,0.003,25818.0,25817.0,0.80201557]
[1693586773246,0.21989642,25818.0,25817.0,0.09255838]
[1693586773451,0.21689642,25818.0,25817.0,0.09255838]
[1693586773644,0.255,25819.0,25817.0,0.09255838]
[1693586773757,0.099,25818.0,25817.0,0.12955838]
[1693586773959,0.003,25818.0,25817.0,0.17586767]
[1693586774530,0.003,25818.0,25817.0,0.26748125]
[1693586774732,0.003,25818.0,25817.0,0.12861358]
[1693586775286,0.07962,25818.0,25817.0,0.17486767]
[1693586775495,0.003,25818.0,25817.0,0.36002456]
[1693586775668,0.003,25818.0,25817.0,0.94761957]
[1693586776100,0.003,25818.0,25817.0,0.91061957]
[1693586776300,0.003,25818.0,25817.0,0.72546268]
[1693586776503,0.006,25818.0,25817.0,0.76246268]
[1693586777356,0.006,25818.0,25817.0,0.53101656]
[1693586777757,0.006,25818.0,25817.0,0.77101656]
[1693586777970,0.0009965,25820.0,25818.0,0.02]
[1693586778188,0.154927,25823.0,25818.0,0.02]
[1693586778189,0.260587,25823.0,25819.0,0.8756198]
[1693586778388,0.27870479,25822.0,25820.0,0.55082008]
[1693586778608,0.17322479,25821.0,25820.0,0.09280352]
[1693586778808,0.28158479,25821.0,25820.0,0.09280352]
[1693586779011,0.26874479,25821.0,25820.0,0.09280352]
[1693586779256,0.25128479,25821.0,25820.0,0.09280352]
[1693586779456,0.24786479,25821.0,25820.0,0.13920529]
[1693586779662,0.17322479,25821.0,25820.0,0.36560532]
[1693586779904,0.003,25821.0,25820.0,1.09258427]
[1693586780082,0.003,25821.0,25820.0,0.88697895]
[1693586780385,0.003,25821.0,25820.0,0.84056536]
[1693586781111,0.003,25821.0,25820.0,0.87656536]
[1693586781112,0.007,25821.0,25820.0,0.87656536]
[1693586781443,0.007,25821.0,25820.0,0.71656536]
[1693586781870,0.007,25821.0,25820.0,0.85568593]
[1693586782228,0.007,25821.0,25820.0,0.6701016]
[1693586783692,0.007,25821.0,25820.0,0.30483879]
[1693586784511,0.007,25821.0,25820.0,0.16571822]
[1693586785365,0.007,25821.0,25820.0,0.30483879]
[1693586785775,0.007,25821.0,25820.0,0.16571822]
[1693586786092,0.007,25821.0,25820.0,0.712805]
[1693586786500,0.007,25821.0,25820.0,0.85192557]
[1693586786703,0.007,25821.0,25820.0,0.36184151]
[1693586786862,0.007,25821.0,25820.0,0.20184151]
[1693586787055,0.007,25821.0,25820.0,0.34096208]
[1693586787258,0.007,25821.0,25820.0,0.74892829]
[1693586787467,0.007,25821.0,25820.0,0.84892829]
[1693586787670,0.007,25821.0,25820.0,1.53887019]
[1693586787907,0.007,25821.0,25820.0,1.63172014]
[1693586788363,0.007,25821.0,25820.0,1.44613581]
[1693586788809,0.007,25821.0,25820.0,1.63140016]
[1693586789157,0.007,25821.0,25820.0,1.4459358]
[1693586789360,0.007,25821.0,25820.0,1.39956667]
[1693586789559,0.007,25821.0,25820.0,1.41956667]
[1693586789767,0.007,25821.0,25820.0,1.95139712]
[1693586790365,0.007,25821.0,25820.0,1.85867103]
[1693586790566,0.007,25821.0,25820.0,2.37956667]
[1693586790764,0.003,25821.0,25820.0,2.18356667]
[1693586790992,0.003,25821.0,25820.0,2.22056667]
[1693586790993,0.006,25821.0,25820.0,2.22056667]
[1693586791235,0.003,25821.0,25820.0,2.18356667]
[1693586791347,0.003,25821.0,25820.0,2.13716846]
[1693586791562,0.005,25821.0,25820.0,2.35962978]
[1693586792570,0.005,25821.0,25820.0,2.22056667]
[1693586792987,0.005,25821.0,25820.0,2.45239712]
[1693586794120,0.00099486,25830.0,25828.0,0.04]
[1693586794323,0.00099486,25830.0,25829.0,0.62156981]
[1693586794530,0.08,25832.0,25829.0,0.62156981]
[1693586795351,0.08,25832.0,25829.0,0.54708678]
[1693586796021,0.31486891,25832.0,25829.0,0.165]
[1693586796632,0.39538891,25832.0,25829.0,0.165]
[1693586796840,0.31486891,25832.0,25829.0,0.165]
[1693586797258,0.34560827,25831.0,25829.0,0.009]
[1693586797483,0.34410827,25831.0,25829.0,0.009]
[1693586797714,0.51352,25831.0,25829.0,0.009]
[1693586797931,0.5125,25831.0,25829.0,0.009]
[1693586798147,0.5125,25831.0,25829.0,0.004]
[1693586798148,0.50812,25831.0,25829.0,0.004]
[1693586798377,0.50794,25831.0,25829.0,0.004]
[1693586798606,0.58956,25831.0,25829.0,0.005]
[1693586798815,0.58806,25831.0,25829.0,0.005]
[1693586799019,0.58998,25831.0,25829.0,0.005]
[1693586799226,0.20765808,25830.0,25829.0,0.005]
[1693586799436,0.36975808,25830.0,25829.0,0.005]
[1693586799637,0.4163947,25830.0,25829.0,0.005]
[1693586799840,0.91212149,25830.0,25829.0,0.009]
[1693586800129,1.16587793,25830.0,25829.0,0.005]
[1693586800311,1.31483793,25830.0,25829.0,0.009]
[1693586800519,1.28567793,25830.0,25829.0,0.009]
[1693586800723,1.27991793,25830.0,25829.0,0.004]
[1693586800951,1.11102678,25830.0,25829.0,0.004]
[1693586801148,1.11630678,25830.0,25829.0,0.009]
[1693586801427,1.29413207,25830.0,25829.0,0.009]
[1693586801635,1.28117207,25830.0,25829.0,0.005]
[1693586801843,0.08,25827.0,25824.0,0.04]
[1693586802058,0.23483471,25827.0,25824.0,0.04]
[1693586802260,0.06522,25826.0,25824.0,0.04]
[1693586802464,0.22816,25826.0,25825.0,0.03563286]
[1693586802641,0.49382,25826.0,25825.0,0.03563286]
[1693586802889,0.4886,25826.0,25825.0,0.03563286]
[1693586803113,0.49682,25826.0,25825.0,0.03563286]
[1693586803316,0.50414,25826.0,25825.0,0.03563286]
[1693586803518,0.74114898,25826.0,25825.0,0.03563286]
[1693586803649,0.74192898,25826.0,25825.0,0.03563286]
[1693586803848,0.75734898,25826.0,25825.0,0.03563286]
[1693586804059,0.75650898,25826.0,25825.0,0.03963286]
[1693586804259,0.85474898,25826.0,25825.0,0.004]
[1693586804466,0.85084898,25826.0,25825.0,0.004]
[1693586804686,0.85054898,25826.0,25825.0,0.004]
[1693586805014,0.84574898,25826.0,25825.0,0.004]
[1693586805217,0.83242898,25826.0,25825.0,0.009]
[1693586805420,0.82654898,25826.0,25825.0,0.009]
[1693586805564,0.74224898,25826.0,25825.0,0.009]
[1693586805743,0.82432898,25826.0,25825.0,0.009]
[1693586805946,0.82474898,25826.0,25825.0,0.009]
[1693586806141,0.82522898,25826.0,25825.0,0.009]
[1693586806346,0.74224898,25826.0,25825.0,0.009]
[1693586806791,0.82564898,25826.0,25825.0,0.009]
[1693586806996,0.82636898,25826.0,25825.0,0.009]
[1693586807144,0.78618898,25826.0,25825.0,0.009]
[1693586807347,0.78528898,25826.0,25825.0,0.009]
[1693586807600,0.70224898,25826.0,25825.0,0.009]
[1693586808664,0.4635,25826.0,25825.0,0.009]
[1693586810840,0.6955558,25826.0,25825.0,0.009]
[1693586811197,0.4635,25826.0,25825.0,0.009]
[1693586811745,0.4635,25826.0,25825.0,0.59608678]
[1693586811746,0.1209,25826.0,25825.0,0.59608678]
[1693586811948,0.08,25827.0,25825.0,0.59608678]
[1693586812099,0.08,25827.0,25826.0,0.38708678]
[1693586812299,0.3511,25829.0,25826.0,0.42708678]
[1693586812504,0.02,25828.0,25826.0,0.04]
[1693586812919,0.08,25828.0,25826.0,0.04]
[1693586813737,0.081,25828.0,25826.0,0.04]
[1693586813955,0.2347,25828.0,25826.0,0.04]
[1693586814273,0.25321696,25827.0,25824.0,0.04]
[1693586814485,0.08,25826.0,25824.0,0.04]
[1693586814690,0.1823,25826.0,25823.0,0.02]
[1693586814889,0.08538,25825.0,25823.0,0.02]
[1693586815096,0.08724,25825.0,25823.0,0.02]
[1693586815236,0.36004,25825.0,25824.0,0.038]
[1693586815448,0.36106,25825.0,25824.0,0.038]
[1693586815651,0.35974,25825.0,25824.0,0.038]
[1693586815851,0.36184,25825.0,25824.0,0.038]
[1693586816054,0.73218301,25825.0,25824.0,0.038]
[1693586816279,0.73236301,25825.0,25824.0,0.038]
[1693586816482,0.73356301,25825.0,25824.0,0.03559684]
[1693586816655,0.73170301,25825.0,25824.0,0.03559684]
[1693586816852,0.73140301,25825.0,25824.0,0.05159684]
[1693586817106,1.01458678,25825.0,25824.0,0.05159684]
[1693586817277,1.53140184,25825.0,25824.0,0.05159684]
[1693586817634,1.55000184,25825.0,25824.0,0.06959684]
[1693586817942,1.55936184,25825.0,25824.0,0.06959684]
[1693586818094,1.55024184,25825.0,25824.0,0.05159684]
[1693586818297,1.55408184,25825.0,25824.0,0.05159684]
[1693586818495,1.55196184,25825.0,25824.0,0.05359684]
[1693586818846,1.79692084,25825.0,25824.0,0.05359684]
[1693586819019,1.75972084,25825.0,25824.0,0.05359684]
[1693586819254,1.72828084,25825.0,25824.0,0.03759684]
[1693586819465,1.73096084,25825.0,25824.0,0.03959684]
[1693586819646,1.72712084,25825.0,25824.0,0.03959684]
[1693586819876,1.72700084,25825.0,25824.0,0.03959684]
[1693586820081,1.70900084,25825.0,25824.0,0.03959684]
[1693586820281,1.70696084,25825.0,25824.0,0.03959684]
[1693586820480,1.72292084,25825.0,25824.0,0.03959684]
[1693586820609,1.72748084,25825.0,25824.0,0.03959684]
[1693586820816,1.75004084,25825.0,25824.0,0.03959684]
[1693586821067,1.79312084,25825.0,25824.0,0.03959684]
[1693586821272,1.90964084,25825.0,25824.0,0.03959684]
[1693586821476,1.90940084,25825.0,25824.0,0.03959684]
[1693586821676,2.52518084,25825.0,25824.0,0.03959684]
[1693586821904,2.54194084,25825.0,25824.0,0.03959684]
[1693586822122,2.30686084,25825.0,25824.0,0.03959684]
[1693586822321,2.30266084,25825.0,25824.0,0.03959684]
[1693586822528,1.99938554,25825.0,25824.0,0.03959684]
[1693586822730,1.48542554,25825.0,25824.0,0.03959684]
[1693586822931,1.46736554,25825.0,25824.0,0.03959684]
[1693586823180,1.47348554,25825.0,25824.0,0.03959684]
[1693586823386,1.48584554,25825.0,25824.0,0.03959684]
[1693586823590,1.48848554,25825.0,25824.0,0.03959684]
[1693586823794,1.49388554,25825.0,25824.0,0.03959684]
[1693586824198,1.49394554,25825.0,25824.0,0.03959684]
[1693586824416,1.49562554,25825.0,25824.0,0.03959684]
[1693586824621,1.45784084,25825.0,25824.0,0.03959684]
[1693586824827,1.71656492,25825.0,25824.0,0.03959684]
[1693586825031,1.14641814,25825.0,25824.0,0.03959684]
[1693586825211,1.13441814,25825.0,25824.0,0.03959684]
[1693586825438,1.13435814,25825.0,25824.0,0.03959684]
[1693586825609,1.13395814,25825.0,25824.0,0.03759684]
[1693586825819,1.13509814,25825.0,25824.0,0.03759684]
[1693586825992,1.13531814,25825.0,25824.0,0.03859684]
[1693586826193,1.13355814,25825.0,25824.0,0.03559684]
[1693586826369,1.13373814,25825.0,25824.0,0.03659684]
[1693586826603,1.13543814,25825.0,25824.0,0.03759684]
[1693586826811,1.13567814,25825.0,25824.0,0.03759684]
[1693586826991,1.13515814,25825.0,25824.0,0.03659684]
[1693586827187,1.13615814,25825.0,25824.0,0.03759684]
[1693586827398,1.14029814,25825.0,25824.0,0.03759684]
[1693586827639,1.14035814,25825.0,25824.0,0.03759684]
[1693586827859,1.16135814,25825.0,25824.0,0.03759684]
[1693586828043,1.16195814,25825.0,25824.0,0.03759684]
[1693586828247,1.16177814,25825.0,25824.0,0.03759684]
[1693586828440,1.15991814,25825.0,25824.0,0.03759684]
[1693586828644,1.31258084,25825.0,25824.0,0.03759684]
[1693586828846,1.45880084,25825.0,25824.0,0.03759684]
[1693586829045,1.46180084,25825.0,25824.0,0.03759684]
[1693586829247,1.47368084,25825.0,25824.0,0.03759684]
[1693586829455,1.46504084,25825.0,25824.0,0.03759684]
[1693586829657,1.46336084,25825.0,25824.0,0.03759684]
[1693586829856,1.45748084,25825.0,25824.0,0.03759684]
[1693586830062,1.45316084,25825.0,25824.0,0.03759684]
[1693586830257,1.44980084,25825.0,25824.0,0.03759684]
[1693586830457,1.69984301,25825.0,25824.0,0.03759684]
[1693586830657,1.44884084,25825.0,25824.0,0.03759684]
[1693586830858,1.66528096,25825.0,25824.0,0.03759684]